[Event "*** Titled Tuesday Blitz"]
[Site "Chess.com"]
[Date "2020.11.10"]
[Round "9"]
[White "Legendinunknown"]
[Black "SanchezKelvin"]
[Result "1/2-1/2"]
[WhiteElo "2688"]
[BlackElo "2456"]
[TimeControl "180+1"]
[EndTime "11:52:58 PST"]
[Termination "Game drawn by repetition"]

1. d4 {[%clk 0:03:00.9]} 1... Nf6 {[%clk 0:02:54.7]} 2. c4 {[%clk 0:03:00.7]}
2... c5 {[%clk 0:02:50.8]} 3. d5 {[%clk 0:02:59.2]} 3... e6 {[%clk 0:02:51.2]}
4. Nc3 {[%clk 0:02:57.8]} 4... exd5 {[%clk 0:02:52.1]} 5. cxd5 {[%clk
0:02:58.6]} 5... d6 {[%clk 0:02:52.4]} 6. e4 {[%clk 0:02:58.5]} 6... g6 {[%clk
0:02:48.1]} 7. Nge2 {[%clk 0:02:56.4]} 7... Bg7 {[%clk 0:02:47.7]} 8. Ng3 {[%clk
0:02:55.8]} 8... a6 {[%clk 0:02:47.6]} 9. a4 {[%clk 0:02:55.1]} 9... h5 {[%clk
0:02:45.5]} 10. Bg5 {[%clk 0:02:52.7]} 10... h4 {[%clk 0:02:44.6]} 11. Nge2
{[%clk 0:02:52]} 11... h3 {[%clk 0:02:41]} 12. g3 {[%clk 0:02:50.7]} 12... Bg4
{[%clk 0:02:40.1]} 13. Qd3 {[%clk 0:02:48.8]} 13... Nbd7 {[%clk 0:02:35.4]} 14.
Bf4 {[%clk 0:02:42.2]} 14... Nh5 {[%clk 0:02:24.2]} 15. f3 {[%clk 0:02:37.8]}
15... Nxf4 {[%clk 0:02:15.5]} 16. gxf4 {[%clk 0:02:38.7]} 16... Bh5 {[%clk
0:02:10.4]} 17. Bxh3 {[%clk 0:02:34.8]} 17... c4 {[%clk 0:02:04.8]} 18. Qe3
{[%clk 0:02:33.9]} 18... Nc5 {[%clk 0:02:02.5]} 19. O-O-O {[%clk 0:02:28.3]}
19... Qa5 {[%clk 0:01:49]} 20. e5 {[%clk 0:02:20.7]} 20... O-O {[%clk
0:01:34.1]} 21. Bg4 {[%clk 0:02:11.3]} 21... Bxg4 {[%clk 0:01:27.8]} 22. fxg4
{[%clk 0:02:12.2]} 22... b5 {[%clk 0:01:26.2]} 23. h4 {[%clk 0:02:05.5]} 23...
b4 {[%clk 0:01:24.5]} 24. Ne4 {[%clk 0:02:04.9]} 24... Nb3+ {[%clk 0:01:22.8]}
25. Kb1 {[%clk 0:02:04.8]} 25... dxe5 {[%clk 0:01:09.7]} 26. fxe5 {[%clk
0:01:48.2]} 26... Bxe5 {[%clk 0:01:02.1]} 27. Qg5 {[%clk 0:01:42.2]} 27... Bg7
{[%clk 0:00:53.6]} 28. Nf6+ {[%clk 0:01:40]} 28... Bxf6 {[%clk 0:00:48.1]} 29.
Qxf6 {[%clk 0:01:40.9]} 29... Qd8 {[%clk 0:00:21.7]} 30. Qf4 {[%clk 0:01:36.3]}
30... Re8 {[%clk 0:00:20.2]} 31. Qxc4 {[%clk 0:01:34.2]} 31... Rc8 {[%clk
0:00:17.7]} 32. Qxb3 {[%clk 0:01:32.7]} 32... Rxe2 {[%clk 0:00:17.3]} 33. h5
{[%clk 0:01:29.6]} 33... Rcc2 {[%clk 0:00:15.9]} 34. Qxc2 {[%clk 0:01:27.1]}
34... Rxc2 {[%clk 0:00:15.4]} 35. Kxc2 {[%clk 0:01:28]} 35... Qc8+ {[%clk
0:00:15.5]} 36. Kb1 {[%clk 0:01:17.3]} 36... b3 {[%clk 0:00:15.7]} 37. Rd2
{[%clk 0:01:14.8]} 37... Qxg4 {[%clk 0:00:14.1]} 38. Re1 {[%clk 0:01:03.6]}
38... Qxa4 {[%clk 0:00:14]} 39. Rde2 {[%clk 0:00:53.3]} 39... Qa2+ {[%clk
0:00:13.2]} 40. Kc1 {[%clk 0:00:53.3]} 40... Qa1+ {[%clk 0:00:13.5]} 41. Kd2
{[%clk 0:00:53.9]} 41... Qxb2+ {[%clk 0:00:14.1]} 42. Kd3 {[%clk 0:00:54.2]}
42... Qa3 {[%clk 0:00:14.1]} 43. Kd4 {[%clk 0:00:51.2]} 43... Qb4+ {[%clk
0:00:13.7]} 44. Ke5 {[%clk 0:00:50.9]} 44... Qc3+ {[%clk 0:00:12.8]} 45. Kd6
{[%clk 0:00:50.3]} 45... Qb4+ {[%clk 0:00:10.3]} 46. Kd7 {[%clk 0:00:48.9]}
46... b2 {[%clk 0:00:09.3]} 47. d6 {[%clk 0:00:45.5]} 47... b1=Q {[%clk
0:00:08.4]} 48. Rxb1 {[%clk 0:00:44.7]} 48... Qxb1 {[%clk 0:00:09.3]} 49. Re8+
{[%clk 0:00:42.2]} 49... Kg7 {[%clk 0:00:08.9]} 50. hxg6 {[%clk 0:00:42.7]}
50... Qb5+ {[%clk 0:00:07.3]} 51. Ke7 {[%clk 0:00:41.6]} 51... Qe5+ {[%clk
0:00:07.1]} 52. Kd7 {[%clk 0:00:41.5]} 52... Qb5+ {[%clk 0:00:07]} 53. Ke7
{[%clk 0:00:41.6]} 53... fxg6 {[%clk 0:00:07.2]} 54. Rc8 {[%clk 0:00:35.8]}
54... Qe5+ {[%clk 0:00:05.9]} 55. Kd7 {[%clk 0:00:31.4]} 55... Kf7 {[%clk
0:00:06.4]} 56. Rc7 {[%clk 0:00:26.2]} 56... Qe6+ {[%clk 0:00:05.7]} 57. Kd8+
{[%clk 0:00:23.7]} 57... Kf8 {[%clk 0:00:06]} 58. d7 {[%clk 0:00:23.6]} 58...
Qb6 {[%clk 0:00:05.2]} 59. Kc8 {[%clk 0:00:22.9]} 59... Qe6 {[%clk 0:00:04.3]}
60. Kd8 {[%clk 0:00:20.3]} 60... Qb6 {[%clk 0:00:03.9]} 61. Kc8 {[%clk
0:00:20.3]} 61... Qe6 {[%clk 0:00:03.9]} 62. Kd8 {[%clk 0:00:20.6]} 1/2-1/2

[Event "*** Titled Tuesday Blitz"]
[Site "Chess.com"]
[Date "2020.11.10"]
[Round "9"]
[White "Mazetovic"]
[Black "Meri-Arabidze"]
[Result "1-0"]
[WhiteElo "2757"]
[BlackElo "2618"]
[TimeControl "180+1"]
[EndTime "11:52:59 PST"]
[Termination "Mazetovic won on time"]

1. e4 {[%clk 0:02:59.7]} 1... c5 {[%clk 0:02:59.6]} 2. Nf3 {[%clk 0:02:59.7]}
2... e6 {[%clk 0:03:00.4]} 3. c4 {[%clk 0:02:58.9]} 3... Nc6 {[%clk 0:02:59.9]}
4. Nc3 {[%clk 0:02:59]} 4... Nd4 {[%clk 0:02:59.9]} 5. Nxd4 {[%clk 0:02:58]}
5... cxd4 {[%clk 0:02:59.7]} 6. Ne2 {[%clk 0:02:58.5]} 6... e5 {[%clk
0:02:58.4]} 7. Ng3 {[%clk 0:02:58]} 7... g6 {[%clk 0:02:57.5]} 8. Bd3 {[%clk
0:02:57.8]} 8... h5 {[%clk 0:02:56.1]} 9. h3 {[%clk 0:02:54.1]} 9... h4 {[%clk
0:02:54.1]} 10. Nf1 {[%clk 0:02:53.5]} 10... Bh6 {[%clk 0:02:52.3]} 11. Nh2
{[%clk 0:02:52.3]} 11... d6 {[%clk 0:02:44.8]} 12. Bc2 {[%clk 0:02:52.1]} 12...
Nf6 {[%clk 0:02:40.8]} 13. Ba4+ {[%clk 0:02:51.6]} 13... Kf8 {[%clk 0:02:39]}
14. d3 {[%clk 0:02:51.6]} 14... Bxc1 {[%clk 0:02:38]} 15. Rxc1 {[%clk
0:02:49.3]} 15... Kg7 {[%clk 0:02:38.3]} 16. Qd2 {[%clk 0:02:31.4]} 16... a6
{[%clk 0:02:33.5]} 17. Bd1 {[%clk 0:02:28.8]} 17... Be6 {[%clk 0:02:31.8]} 18.
O-O {[%clk 0:02:27.1]} 18... Nh5 {[%clk 0:02:19.7]} 19. Bxh5 {[%clk 0:02:26.1]}
19... Rxh5 {[%clk 0:02:20.6]} 20. f4 {[%clk 0:02:25.8]} 20... exf4 {[%clk
0:02:04.5]} 21. Qxf4 {[%clk 0:02:13.4]} 21... b5 {[%clk 0:02:03.5]} 22. b3
{[%clk 0:02:01.7]} 22... bxc4 {[%clk 0:02:03.2]} 23. bxc4 {[%clk 0:02:01.3]}
23... Qg5 {[%clk 0:01:23.9]} 24. Qxg5 {[%clk 0:01:29]} 24... Rxg5 {[%clk
0:01:24.5]} 25. Nf3 {[%clk 0:01:28.8]} 25... Ra5 {[%clk 0:01:24.4]} 26. Rf2
{[%clk 0:01:28]} 26... Ra3 {[%clk 0:01:24.6]} 27. Rd1 {[%clk 0:01:26.4]} 27...
Rb8 {[%clk 0:01:18.3]} 28. Nxh4 {[%clk 0:01:13.3]} 28... Rb4 {[%clk 0:01:14.9]}
29. Nf3 {[%clk 0:01:12.9]} 29... Rba4 {[%clk 0:01:10.4]} 30. Rdd2 {[%clk
0:01:12.6]} 30... Rb4 {[%clk 0:00:46.5]} 31. Nxd4 {[%clk 0:01:11.2]} 31... Rb1+
{[%clk 0:00:46.6]} 32. Rf1 {[%clk 0:01:08.5]} 32... Rxf1+ {[%clk 0:00:41.6]} 33.
Kxf1 {[%clk 0:01:08.3]} 33... Bd7 {[%clk 0:00:42.5]} 34. Ke2 {[%clk 0:01:06.3]}
34... f5 {[%clk 0:00:41.6]} 35. exf5 {[%clk 0:01:05.4]} 35... gxf5 {[%clk
0:00:41.9]} 36. Rb2 {[%clk 0:01:05.1]} 36... Kf6 {[%clk 0:00:41.2]} 37. Kd2
{[%clk 0:01:04]} 37... f4 {[%clk 0:00:40.8]} 38. Nb3 {[%clk 0:01:03]} 38... Kg5
{[%clk 0:00:31.8]} 39. Kc3 {[%clk 0:01:01.6]} 39... Kh4 {[%clk 0:00:31.5]} 40.
Rf2 {[%clk 0:01:01.3]} 40... Kg3 {[%clk 0:00:28.5]} 41. Rf3+ {[%clk 0:00:59.2]}
41... Kxg2 {[%clk 0:00:28.6]} 42. Rxf4 {[%clk 0:00:59.5]} 42... Rxa2 {[%clk
0:00:29.1]} 43. Rd4 {[%clk 0:00:57.7]} 43... Bxh3 {[%clk 0:00:26.2]} 44. Rxd6
{[%clk 0:00:57.8]} 44... a5 {[%clk 0:00:23.2]} 45. Ra6 {[%clk 0:00:57.8]} 45...
a4 {[%clk 0:00:23.4]} 46. Nc5 {[%clk 0:00:57.9]} 46... a3 {[%clk 0:00:19.1]} 47.
Kb3 {[%clk 0:00:57.4]} 47... Rd2 {[%clk 0:00:11.9]} 48. Kxa3 {[%clk 0:00:56]}
48... Bf5 {[%clk 0:00:11.2]} 49. Rd6 {[%clk 0:00:54.8]} 49... Kf3 {[%clk
0:00:11.3]} 50. Kb4 {[%clk 0:00:55]} 50... Ke3 {[%clk 0:00:11]} 51. Rd8 {[%clk
0:00:40.7]} 51... Rd1 {[%clk 0:00:10.8]} 52. Re8+ {[%clk 0:00:39.5]} 52... Kf4
{[%clk 0:00:09.1]} 53. Kc3 {[%clk 0:00:34.2]} 53... Kg5 {[%clk 0:00:09.2]} 54.
Kd4 {[%clk 0:00:32.8]} 54... Kf6 {[%clk 0:00:09.1]} 55. Rd8 {[%clk 0:00:30.6]}
55... Ke7 {[%clk 0:00:07.6]} 56. Rd5 {[%clk 0:00:29.9]} 56... Bg6 {[%clk
0:00:07.2]} 57. Re5+ {[%clk 0:00:27.4]} 57... Kd8 {[%clk 0:00:05.7]} 58. Ne6+
{[%clk 0:00:26.9]} 58... Kc8 {[%clk 0:00:04]} 59. Nf4 {[%clk 0:00:26.8]} 59...
Bh7 {[%clk 0:00:02.3]} 60. c5 {[%clk 0:00:27.1]} 1-0

[Event "*** Titled Tuesday Blitz"]
[Site "Chess.com"]
[Date "2020.11.10"]
[Round "9"]
[White "FMalexhdez"]
[Black "Lady_Nika"]
[Result "0-1"]
[WhiteElo "2257"]
[BlackElo "2364"]
[TimeControl "180+1"]
[EndTime "11:53:00 PST"]
[Termination "Lady_Nika won on time"]

1. e4 {[%clk 0:03:00.9]} 1... e6 {[%clk 0:02:58.8]} 2. d4 {[%clk 0:02:58.4]}
2... d5 {[%clk 0:02:58.3]} 3. Nd2 {[%clk 0:02:58.2]} 3... Nf6 {[%clk 0:02:57.8]}
4. e5 {[%clk 0:02:58.4]} 4... Nfd7 {[%clk 0:02:57.5]} 5. f4 {[%clk 0:02:59]}
5... c5 {[%clk 0:02:57.5]} 6. Ndf3 {[%clk 0:02:59.4]} 6... Nc6 {[%clk
0:02:57.2]} 7. Ne2 {[%clk 0:02:59.5]} 7... cxd4 {[%clk 0:02:57]} 8. Nexd4 {[%clk
0:02:58.5]} 8... Qb6 {[%clk 0:02:57.6]} 9. c3 {[%clk 0:02:58.6]} 9... Bc5 {[%clk
0:02:56.9]} 10. Be2 {[%clk 0:02:58.4]} 10... O-O {[%clk 0:02:56.6]} 11. O-O
{[%clk 0:02:58.3]} 11... f6 {[%clk 0:02:56.9]} 12. exf6 {[%clk 0:02:57.4]} 12...
Nxf6 {[%clk 0:02:56.3]} 13. Kh1 {[%clk 0:02:57.9]} 13... Bd7 {[%clk 0:02:47.6]}
14. Rb1 {[%clk 0:02:53.1]} 14... a5 {[%clk 0:02:41.7]} 15. Be3 {[%clk
0:02:52.8]} 15... Ng4 {[%clk 0:02:40.5]} 16. Bg1 {[%clk 0:02:52.7]} 16... Rxf4
{[%clk 0:02:32]} 17. Ng5 {[%clk 0:02:32.5]} 17... Rxf1 {[%clk 0:02:21.1]} 18.
Bxf1 {[%clk 0:02:31.6]} 18... Bxd4 {[%clk 0:02:16.7]} 19. cxd4 {[%clk 0:02:28]}
19... Nf6 {[%clk 0:02:16.1]} 20. Bd3 {[%clk 0:02:15.9]} 20... h6 {[%clk
0:02:15.4]} 21. Nf3 {[%clk 0:02:15.7]} 21... Rf8 {[%clk 0:02:08.7]} 22. Ne5
{[%clk 0:02:15.2]} 22... Be8 {[%clk 0:01:50.5]} 23. Qd2 {[%clk 0:01:38.9]} 23...
Qd8 {[%clk 0:01:42.7]} 24. Rf1 {[%clk 0:01:30.4]} 24... Qe7 {[%clk 0:01:33.3]}
25. Be3 {[%clk 0:01:29.2]} 25... Nxe5 {[%clk 0:01:31.5]} 26. dxe5 {[%clk
0:01:28.9]} 26... Ng4 {[%clk 0:01:31.7]} 27. Bf4 {[%clk 0:01:17.8]} 27... Qh4
{[%clk 0:00:45.6]} 28. Bg3 {[%clk 0:01:12.4]} 28... Rxf1+ {[%clk 0:00:44.6]} 29.
Bxf1 {[%clk 0:01:11.6]} 29... Qg5 {[%clk 0:00:44.2]} 30. Qxa5 {[%clk 0:00:49.2]}
30... Qf5 {[%clk 0:00:41.5]} 31. Qe1 {[%clk 0:00:46.2]} 31... Bc6 {[%clk
0:00:38]} 32. h3 {[%clk 0:00:33.9]} 32... Ne3 {[%clk 0:00:34.4]} 33. Qxe3 {[%clk
0:00:22.6]} 33... Qxf1+ {[%clk 0:00:34.1]} 34. Kh2 {[%clk 0:00:20.9]} 34... d4
{[%clk 0:00:34]} 35. Qf2 {[%clk 0:00:20.2]} 35... Qd1 {[%clk 0:00:31.1]} 36. b3
{[%clk 0:00:15.9]} 36... Qh5 {[%clk 0:00:30.8]} 37. Bf4 {[%clk 0:00:14.8]} 37...
d3 {[%clk 0:00:29.7]} 38. a4 {[%clk 0:00:12.8]} 38... Qf5 {[%clk 0:00:29.3]} 39.
Qd2 {[%clk 0:00:11.9]} 39... Qe4 {[%clk 0:00:28.9]} 40. a5 {[%clk 0:00:10.4]}
40... g5 {[%clk 0:00:29]} 41. Bg3 {[%clk 0:00:09.4]} 41... Bd5 {[%clk
0:00:25.6]} 42. b4 {[%clk 0:00:07.7]} 42... Qc4 {[%clk 0:00:24.5]} 43. Be1
{[%clk 0:00:07.3]} 43... Kg7 {[%clk 0:00:22.3]} 44. Qf2 {[%clk 0:00:06.3]} 44...
Qf4+ {[%clk 0:00:20.4]} 45. Qxf4 {[%clk 0:00:05.6]} 45... gxf4 {[%clk
0:00:20.8]} 46. Bd2 {[%clk 0:00:05.5]} 46... f3 {[%clk 0:00:18.9]} 47. gxf3
{[%clk 0:00:03.9]} 47... Bxf3 {[%clk 0:00:19]} 48. Kg3 {[%clk 0:00:04.6]} 48...
Bd5 {[%clk 0:00:18.6]} 49. b5 {[%clk 0:00:03.9]} 49... Kg6 {[%clk 0:00:18.5]}
50. a6 {[%clk 0:00:03.7]} 50... bxa6 {[%clk 0:00:18.2]} 51. bxa6 {[%clk
0:00:03.8]} 51... Kf5 {[%clk 0:00:18.5]} 52. Bxh6 {[%clk 0:00:02.4]} 52... Kxe5
{[%clk 0:00:18.8]} 53. Bd2 {[%clk 0:00:02.7]} 53... Kf5 {[%clk 0:00:18.8]} 54.
Kf2 {[%clk 0:00:03.3]} 54... e5 {[%clk 0:00:17.8]} 55. Ke3 {[%clk 0:00:03.7]}
55... e4 {[%clk 0:00:18.2]} 56. h4 {[%clk 0:00:03.5]} 56... Ba8 {[%clk
0:00:17.3]} 57. Be1 {[%clk 0:00:03.5]} 57... Kg4 {[%clk 0:00:16.7]} 58. a7
{[%clk 0:00:04.1]} 58... Bb7 {[%clk 0:00:16.5]} 59. Kd2 {[%clk 0:00:03.7]} 59...
Kf3 {[%clk 0:00:16.1]} 60. Kc3 {[%clk 0:00:02.5]} 60... Ke2 {[%clk 0:00:15.4]}
0-1

[Event "*** Titled Tuesday Blitz"]
[Site "Chess.com"]
[Date "2020.11.10"]
[Round "9"]
[White "AlexandraBotez"]
[Black "03revilo"]
[Result "1-0"]
[WhiteElo "2131"]
[BlackElo "2318"]
[TimeControl "180+1"]
[EndTime "11:53:01 PST"]
[Termination "AlexandraBotez won by resignation"]

1. d4 {[%clk 0:03:00.9]} 1... Nf6 {[%clk 0:02:52.2]} 2. c4 {[%clk 0:03:00]} 2...
e6 {[%clk 0:02:52.3]} 3. Nf3 {[%clk 0:02:59.5]} 3... b6 {[%clk 0:02:52.2]} 4. g3
{[%clk 0:02:59]} 4... Ba6 {[%clk 0:02:52.3]} 5. b3 {[%clk 0:02:52.3]} 5... Bb4+
{[%clk 0:02:51.8]} 6. Bd2 {[%clk 0:02:51.4]} 6... Be7 {[%clk 0:02:52.1]} 7. Bc3
{[%clk 0:02:50.9]} 7... d5 {[%clk 0:02:51.5]} 8. Nbd2 {[%clk 0:02:50.7]} 8...
Nbd7 {[%clk 0:02:47.1]} 9. Bg2 {[%clk 0:02:50.2]} 9... O-O {[%clk 0:02:46.7]}
10. O-O {[%clk 0:02:49.1]} 10... c5 {[%clk 0:02:45.4]} 11. Re1 {[%clk
0:02:28.7]} 11... Rc8 {[%clk 0:02:42.1]} 12. Rc1 {[%clk 0:02:23.8]} 12... cxd4
{[%clk 0:02:18.2]} 13. Bxd4 {[%clk 0:02:19.9]} 13... Ba3 {[%clk 0:02:06.2]} 14.
Rc2 {[%clk 0:02:14.7]} 14... Re8 {[%clk 0:02:03.6]} 15. e4 {[%clk 0:02:03.1]}
15... e5 {[%clk 0:01:58.8]} 16. Ba1 {[%clk 0:01:49.8]} 16... d4 {[%clk
0:01:36.3]} 17. Nb1 {[%clk 0:01:34.5]} 17... Bb4 {[%clk 0:01:27.8]} 18. Rf1
{[%clk 0:01:32.8]} 18... b5 {[%clk 0:01:18.1]} 19. a3 {[%clk 0:01:29.2]} 19...
Bf8 {[%clk 0:01:10.1]} 20. cxb5 {[%clk 0:01:18.2]} 20... Bxb5 {[%clk 0:01:11]}
21. Re1 {[%clk 0:01:12.4]} 21... Qb6 {[%clk 0:00:58.3]} 22. Rxc8 {[%clk
0:00:38.3]} 22... Rxc8 {[%clk 0:00:59.2]} 23. Qd2 {[%clk 0:00:38.7]} 23... Bc6
{[%clk 0:00:54.4]} 24. b4 {[%clk 0:00:38.3]} 24... Bxe4 {[%clk 0:00:50.1]} 25.
Nxe5 {[%clk 0:00:29.6]} 25... Nxe5 {[%clk 0:00:20.7]} 26. Bxd4 {[%clk 0:00:14]}
26... Qd8 {[%clk 0:00:15]} 27. Rxe4 {[%clk 0:00:10.4]} 27... Nxe4 {[%clk
0:00:13.8]} 28. Bxe4 {[%clk 0:00:11.3]} 28... Ng6 {[%clk 0:00:10.5]} 29. Kg2
{[%clk 0:00:09.8]} 29... Be7 {[%clk 0:00:10.3]} 30. Qe3 {[%clk 0:00:08.1]} 30...
a6 {[%clk 0:00:07.4]} 31. Nd2 {[%clk 0:00:07.5]} 31... Bf6 {[%clk 0:00:07.4]}
32. Bc5 {[%clk 0:00:07.2]} 32... Be7 {[%clk 0:00:05.9]} 33. Bd4 {[%clk
0:00:06.7]} 33... Bf6 {[%clk 0:00:04.3]} 34. Bb6 {[%clk 0:00:06.5]} 34... Qd7
{[%clk 0:00:03.1]} 35. Nf3 {[%clk 0:00:05.8]} 35... Qe6 {[%clk 0:00:03.4]} 36.
Bb7 {[%clk 0:00:04]} 36... Rc3 {[%clk 0:00:03.2]} 37. Qxe6 {[%clk 0:00:03.6]}
37... fxe6 {[%clk 0:00:04.1]} 38. Bxa6 {[%clk 0:00:04.2]} 38... Rxa3 {[%clk
0:00:04.2]} 39. Bc4 {[%clk 0:00:04.2]} 39... Ra1 {[%clk 0:00:04]} 40. Bxe6+
{[%clk 0:00:04]} 40... Kf8 {[%clk 0:00:03.9]} 41. Bc5+ {[%clk 0:00:04.9]} 41...
Ke8 {[%clk 0:00:04.3]} 42. Bd5 {[%clk 0:00:05.2]} 42... Be7 {[%clk 0:00:04.8]}
43. Bc6+ {[%clk 0:00:05.6]} 43... Kd8 {[%clk 0:00:04.8]} 44. Bb6+ {[%clk
0:00:06.4]} 44... Kc8 {[%clk 0:00:04.8]} 45. Be4 {[%clk 0:00:07.3]} 45... Bxb4
{[%clk 0:00:04.8]} 46. Be3 {[%clk 0:00:07.1]} 46... Be7 {[%clk 0:00:04.4]} 47.
Bf5+ {[%clk 0:00:07.3]} 47... Kd8 {[%clk 0:00:04.5]} 48. Bd4 {[%clk 0:00:07.8]}
48... Bf6 {[%clk 0:00:03.8]} 49. Bxa1 {[%clk 0:00:07.1]} 49... Bxa1 {[%clk
0:00:04.5]} 50. Nd2 {[%clk 0:00:07.6]} 50... Bc3 {[%clk 0:00:04.3]} 51. Ne4
{[%clk 0:00:07.7]} 51... Be5 {[%clk 0:00:04]} 52. Ng5 {[%clk 0:00:07.7]} 52...
Nf8 {[%clk 0:00:02.9]} 53. Nf7+ {[%clk 0:00:07.8]} 53... Ke7 {[%clk 0:00:03.3]}
54. Nxe5 {[%clk 0:00:08.4]} 54... Kf6 {[%clk 0:00:04.2]} 55. Bxh7 {[%clk
0:00:07.8]} 55... Kxe5 {[%clk 0:00:04.5]} 56. Bd3 {[%clk 0:00:07.7]} 56... Kf6
{[%clk 0:00:05.4]} 57. Be2 {[%clk 0:00:08.3]} 57... Nd7 {[%clk 0:00:06.1]} 58.
f4 {[%clk 0:00:09.1]} 58... Nf8 {[%clk 0:00:05.1]} 59. Bf3 {[%clk 0:00:10]}
59... Nd7 {[%clk 0:00:04.9]} 60. g4 {[%clk 0:00:10.5]} 60... Nc5 {[%clk
0:00:05.8]} 61. Kg3 {[%clk 0:00:11.1]} 61... Nd3 {[%clk 0:00:06.4]} 62. h4
{[%clk 0:00:11.4]} 62... Ne1 {[%clk 0:00:06.7]} 63. Be4 {[%clk 0:00:11.4]} 63...
Ke6 {[%clk 0:00:05.9]} 64. Kf2 {[%clk 0:00:11.8]} 1-0

[Event "*** Titled Tuesday Blitz"]
[Site "Chess.com"]
[Date "2020.11.10"]
[Round "9"]
[White "Quiet_Desperation"]
[Black "Nara_Kh"]
[Result "0-1"]
[WhiteElo "1775"]
[BlackElo "2375"]
[TimeControl "180+1"]
[EndTime "11:53:09 PST"]
[Termination "Nara_Kh won by resignation"]

1. e4 {[%clk 0:03:00.9]} 1... c5 {[%clk 0:02:59]} 2. Nf3 {[%clk 0:03:00.6]} 2...
d6 {[%clk 0:02:58.9]} 3. d4 {[%clk 0:03:00.8]} 3... Nf6 {[%clk 0:02:58.6]} 4.
Nc3 {[%clk 0:03:00.1]} 4... cxd4 {[%clk 0:02:58.3]} 5. Nxd4 {[%clk 0:03:00.6]}
5... a6 {[%clk 0:02:57.9]} 6. h3 {[%clk 0:02:55.9]} 6... e5 {[%clk 0:02:56.9]}
7. Nde2 {[%clk 0:02:56]} 7... h5 {[%clk 0:02:56.6]} 8. g3 {[%clk 0:02:54.7]}
8... b5 {[%clk 0:02:55.4]} 9. Bg2 {[%clk 0:02:54.3]} 9... Bb7 {[%clk 0:02:54.9]}
10. Be3 {[%clk 0:02:49.5]} 10... Be7 {[%clk 0:02:52.8]} 11. Nd5 {[%clk 0:02:49]}
11... Nxd5 {[%clk 0:02:50.3]} 12. exd5 {[%clk 0:02:49.1]} 12... Nd7 {[%clk
0:02:48.8]} 13. O-O {[%clk 0:02:39.1]} 13... h4 {[%clk 0:02:48.2]} 14. g4 {[%clk
0:02:36.5]} 14... Bg5 {[%clk 0:02:46.7]} 15. f4 {[%clk 0:02:35.2]} 15... exf4
{[%clk 0:02:46.3]} 16. Bxf4 {[%clk 0:02:30.5]} 16... Bxf4 {[%clk 0:02:36.6]} 17.
Rxf4 {[%clk 0:02:25.6]} 17... Ne5 {[%clk 0:02:31.8]} 18. Nd4 {[%clk 0:02:19.7]}
18... O-O {[%clk 0:02:26.5]} 19. Qe1 {[%clk 0:01:45]} 19... g6 {[%clk
0:02:03.4]} 20. Qf2 {[%clk 0:01:37.5]} 20... Kg7 {[%clk 0:02:01]} 21. Rf1 {[%clk
0:01:36.7]} 21... Qe7 {[%clk 0:02:00]} 22. Kh1 {[%clk 0:01:09.9]} 22... Rae8
{[%clk 0:01:55.8]} 23. g5 {[%clk 0:00:54.2]} 23... Qxg5 {[%clk 0:00:54.2]} 24.
Ne6+ {[%clk 0:00:51.1]} 24... Rxe6 {[%clk 0:00:54.4]} 25. dxe6 {[%clk 0:00:50]}
25... Bxg2+ {[%clk 0:00:41.9]} 26. Qxg2 {[%clk 0:00:49.2]} 26... Qxg2+ {[%clk
0:00:42.1]} 27. Kxg2 {[%clk 0:00:50.1]} 27... f5 {[%clk 0:00:42.7]} 28. Rd1
{[%clk 0:00:44.4]} 28... Nc4 {[%clk 0:00:37]} 29. Rxc4 {[%clk 0:00:37.7]} 29...
bxc4 {[%clk 0:00:36.2]} 30. Rxd6 {[%clk 0:00:38.6]} 30... Kf6 {[%clk 0:00:18.3]}
31. Rxa6 {[%clk 0:00:36.6]} 31... Rb8 {[%clk 0:00:18.3]} 32. b3 {[%clk
0:00:34.2]} 32... cxb3 {[%clk 0:00:15.9]} 33. cxb3 {[%clk 0:00:29.4]} 33... g5
{[%clk 0:00:16.1]} 34. Kf3 {[%clk 0:00:25]} 34... Rc8 {[%clk 0:00:16.2]} 35. e7+
{[%clk 0:00:22.2]} 35... Kxe7 {[%clk 0:00:15.9]} 36. Rg6 {[%clk 0:00:22.1]}
36... Rc3+ {[%clk 0:00:16]} 37. Ke2 {[%clk 0:00:21.8]} 37... Rg3 {[%clk
0:00:13.4]} 38. b4 {[%clk 0:00:15.3]} 38... Kf7 {[%clk 0:00:13.6]} 39. Rc6
{[%clk 0:00:12.8]} 39... Ra3 {[%clk 0:00:09.2]} 40. b5 {[%clk 0:00:09.9]} 40...
Rxa2+ {[%clk 0:00:08.7]} 41. Kf3 {[%clk 0:00:09.4]} 41... Ra3+ {[%clk
0:00:08.8]} 42. Kg2 {[%clk 0:00:09.7]} 42... Rb3 {[%clk 0:00:06.8]} 43. b6
{[%clk 0:00:09.3]} 43... f4 {[%clk 0:00:07.1]} 44. Rc7+ {[%clk 0:00:09.5]} 44...
Kf6 {[%clk 0:00:07.4]} 45. b7 {[%clk 0:00:10]} 45... Rb2+ {[%clk 0:00:06.4]} 46.
Kf3 {[%clk 0:00:08.8]} 46... Rb3+ {[%clk 0:00:06.8]} 47. Kg4 {[%clk 0:00:08.1]}
47... Rg3+ {[%clk 0:00:06.7]} 48. Kh5 {[%clk 0:00:08.2]} 48... Rb3 {[%clk
0:00:06.8]} 49. Rc6+ {[%clk 0:00:06.6]} 49... Kf5 {[%clk 0:00:05.9]} 50. Rc5+
{[%clk 0:00:06.6]} 50... Ke4 {[%clk 0:00:06.3]} 51. Rxg5 {[%clk 0:00:04.5]}
51... Rxb7 {[%clk 0:00:05.8]} 52. Kxh4 {[%clk 0:00:04.9]} 52... f3 {[%clk
0:00:05.5]} 53. Kg4 {[%clk 0:00:04.4]} 53... Rf7 {[%clk 0:00:05]} 54. Ra5 {[%clk
0:00:02.9]} 54... f2 {[%clk 0:00:05.2]} 55. Ra4+ {[%clk 0:00:03.4]} 55... Ke5
{[%clk 0:00:04.2]} 56. Ra5+ {[%clk 0:00:02.3]} 56... Ke6 {[%clk 0:00:04.1]} 57.
Ra6+ {[%clk 0:00:02.5]} 57... Ke7 {[%clk 0:00:04.5]} 58. Ra7+ {[%clk 0:00:01.2]}
58... Kf8 {[%clk 0:00:04.7]} 59. Ra1 {[%clk 0:00:01.2]} 0-1